bitfinex/quotes_ETHUSD_20251012
["timestamp","ask_amount","ask_price","bid_price","bid_amount"]
[1760286666158,0.1224,4081.3,4080.7,2.45053743]
[1760286666350,0.1224,4081.3,4080.6,2.57300876]
[1760286666551,0.1224,4081.3,4080.6,0.1224]
[1760286666751,2.22450928,4081.2,4080.6,2.57296533]
[1760286666951,2.160166,4081.0,4079.2,1.92]
[1760286667152,2.5536,4080.9,4080.4,0.1224]
[1760286667356,0.6336,4081.0,4080.4,0.1224]
[1760286667560,0.4213,4082.5,4080.5,0.6462]
[1760286667756,20.01809284,4082.7,4082.0,2.44977951]
[1760286667971,0.4213,4082.9,4082.0,2.44977951]
[1760286668173,0.4213,4082.9,4081.1,0.4303]
[1760286668338,0.4213,4082.9,4082.0,2.44977951]
[1760286668740,2.3413,4082.9,4082.0,2.44977951]
[1760286669060,0.4213,4082.9,4082.0,2.44977951]
[1760286669249,0.001,4083.0,4082.0,2.44977951]
[1760286669649,0.001,4083.0,4082.0,2.88007951]
[1760286669860,0.001,4083.0,4082.0,3.41307367]
[1760286671062,0.001,4084.1,4084.0,2.44857982]
[1760286671591,0.001,4084.1,4084.0,4.79887982]
[1760286671759,0.001,4084.1,4084.0,2.87887982]
[1760286674890,0.001,4084.1,4084.0,2.44857982]
[1760286675388,0.001,4084.1,4082.9,0.4303]
[1760286675590,0.4217,4084.0,4082.3,0.4303]
[1760286675755,0.4217,4084.0,4082.4,0.15233]
[1760286675962,0.001,4084.1,4084.0,2.44857982]
[1760286676160,0.001,4084.1,4083.9,2.44863768]
[1760286676484,0.001,4084.1,4082.7,1.92]
[1760286676793,0.001,4084.1,4084.0,2.44857982]
[1760286677585,0.001,4084.1,4084.0,2.57097982]
[1760286677964,0.001,4084.1,4084.0,0.1224]
[1760286678162,0.6336,4083.7,4082.1,0.112]
[1760286678387,0.6336,4083.7,4082.9,2.44923185]
[1760286678388,2.5536,4083.5,4082.9,2.44923185]
[1760286678690,18.053599,4083.2,4081.9,0.4441]
[1760286678890,0.4351,4083.4,4081.9,0.4441]
[1760286679091,1.92,4083.5,4081.9,0.4441]
[1760286679392,2.44917775,4083.1,4081.4,2.45013965]
[1760286679592,2.44917775,4083.1,4081.3,0.112]
[1760286679593,0.6336,4082.7,4082.1,2.44971246]
[1760286680090,0.6336,4082.8,4082.2,2.44964411]
[1760286680315,0.6336,4082.8,4082.4,2.44953489]
[1760286680469,1.92,4083.5,4081.8,0.4441]
[1760286680798,0.6336,4083.4,4082.8,2.44929344]
[1760286681019,2.5536,4083.2,4082.8,2.44929344]
[1760286681397,2.5536,4083.2,4082.7,2.44934752]
[1760286681588,2.5536,4083.2,4082.6,2.44941088]
[1760286681892,2.5536,4083.2,4082.3,2.44954356]
[1760286681893,2.5536,4083.2,4082.7,2.449357]
[1760286682062,2.5536,4083.2,4081.9,2.44983953]
[1760286682063,2.5536,4083.2,4082.5,2.44944705]
[1760286682266,1.2513435,4083.1,4082.6,2.44940985]
[1760286682472,0.6336,4083.3,4081.8,0.4441]
[1760286682705,5.406977,4084.0,4081.8,0.4441]
[1760286682908,1.92,4084.2,4083.3,2.44898268]
[1760286683204,2.5536,4083.3,4082.6,2.44937572]
[1760286683381,5.0026051,4083.3,4081.9,2.44983953]
[1760286683583,2.5536,4083.3,4082.0,0.28939395]
[1760286683780,2.5536,4083.3,4082.8,2.44929698]
[1760286684100,20.34488054,4083.4,4081.5,2.45006053]
[1760286684101,0.6336,4083.4,4083.0,2.44917395]
[1760286684471,0.6336,4083.5,4082.8,2.4492413]
[1760286684670,0.6336,4083.1,4082.4,2.44948259]
[1760286684870,0.94186711,4083.1,4082.4,2.44949571]
[1760286685091,0.94186711,4083.1,4081.7,2.44995957]
[1760286685288,0.6336,4083.2,4081.7,2.44995957]
[1760286685507,0.6336,4083.2,4081.6,0.4441]
[1760286685708,1.92,4083.8,4081.6,0.4441]
[1760286685885,0.4351,4084.0,4082.1,2.4497195]
[1760286685886,0.6336,4083.9,4082.1,2.4497195]
[1760286686204,0.6336,4083.9,4083.2,2.44900036]
[1760286686503,0.5438293,4083.9,4083.0,2.4491703]
[1760286686713,0.6336,4083.9,4083.3,2.44897623]
[1760286687008,0.6336,4083.9,4082.3,2.44959949]
[1760286687204,0.001,4084.1,4082.7,0.4441]
[1760286687578,0.001,4084.1,4084.0,2.44857982]
[1760286687972,0.001,4084.1,4084.0,2.89267982]
[1760286688168,0.001,4084.1,4084.0,3.5492137]
[1760286690673,0.001,4084.1,4084.0,5.4692137]
[1760286692282,0.001,4084.1,4084.0,3.4268137]
[1760286696922,0.001,4084.1,4084.0,2.44857982]
[1760286697129,0.001,4084.1,4084.0,2.89267982]
[1760286700022,1e-08,4085.0,4084.9,2.44804034]
[1760286700331,0.001,4086.9,4086.3,2.44720162]
[1760286700690,0.001,4086.9,4086.3,2.89130162]
[1760286700900,0.001,4086.9,4086.8,2.44690222]
[1760286701319,0.001,4086.9,4086.8,2.89100222]
[1760286701520,20.34488054,4089.8,4087.0,1.92]
[1760286701721,0.6775,4090.1,4086.3,0.54525835]
[1760286701722,20.34488054,4088.8,4087.1,0.4441]
[1760286701920,20.34488054,4088.8,4088.4,2.44589018]
[1760286702228,3.95448805,4088.7,4088.4,1.99423466]
[1760286702432,3.95448805,4088.7,4088.4,0.1216]
[1760286702601,3.95448805,4088.7,4087.6,2.44636755]
[1760286702602,0.4628,4091.3,4088.6,0.109]
[1760286702925,1.24121807,4093.8,4088.6,0.109]
[1760286702926,0.6845,4091.9,4088.7,0.4441]
[1760286703125,4.19397,4091.8,4089.0,1.92]
[1760286703418,1.92,4091.4,4089.1,0.4373]
[1760286703621,0.6169033,4091.3,4089.1,2.88279615]
[1760286703810,20.34488054,4091.3,4089.0,2.44553477]
[1760286704009,20.34488054,4091.3,4090.8,2.44449837]
[1760286704320,2.44368873,4092.2,4089.4,1.92]
[1760286704321,5.438499,4091.7,4090.5,2.44466614]
[1760286704498,5.438499,4091.7,4090.1,0.4373]
[1760286704499,1.92,4091.6,4090.6,2.44461532]
[1760286704702,1.92,4091.6,4090.1,0.4373]
[1760286704897,0.21431,4091.5,4090.1,0.4373]
[1760286705129,2.376,4091.7,4090.1,0.4373]
[1760286705291,2.376,4091.7,4089.5,0.2159]
[1760286705292,1.92,4091.4,4089.5,0.2159]
[1760286705491,2.3814,4091.6,4089.6,0.4373]
[1760286705806,2.90548908,4091.6,4090.5,2.44467314]
[1760286705993,0.6336,4091.0,4089.7,2.44516712]
[1760286706346,1.92,4091.4,4089.6,0.4373]
[1760286706496,2.34734696,4091.5,4089.8,0.4373]
[1760286706839,1.92,4092.1,4091.4,2.44409291]
[1760286706840,1.92,4092.0,4091.4,2.44409291]
[1760286707022,0.4614,4092.2,4090.6,2.44462914]
[1760286707204,0.2223,4093.1,4090.7,0.4373]
[1760286707432,0.2223,4093.8,4091.0,1.92]
[1760286707645,0.001,4091.3,4091.2,4.36427062]
[1760286707850,0.001,4091.3,4091.2,2.91727062]
[1760286708555,0.12787737,4094.3,4091.2,22.73788054]
[1760286708850,0.4387,4094.6,4092.1,2.44373304]
[1760286709054,2.44199945,4095.1,4092.5,2.44349419]
[1760286709238,2.322558,4095.0,4094.1,2.44253739]
[1760286709445,4.76456275,4095.0,4094.0,2.44256112]
[1760286709630,4.3619455,4095.1,4094.1,2.44251184]
[1760286709824,4.3619455,4095.1,4093.4,0.473]
[1760286709825,10.87784236,4095.1,4093.4,0.473]
[1760286710022,20.34488054,4094.7,4092.8,0.473]
[1760286710352,1.92,4094.4,4092.8,0.473]
[1760286710559,1.92,4094.6,4092.8,0.473]
[1760286710765,2.07835805,4094.5,4092.8,2.91630518]
[1760286710926,2.07835805,4094.5,4092.8,0.473]
[1760286710927,4.52066005,4094.5,4092.8,0.473]
[1760286711156,0.6336,4094.2,4092.8,0.473]
[1760286711357,20.34488054,4092.9,4091.3,0.6957]
[1760286711576,2.03448805,4092.8,4091.3,0.6957]
[1760286711890,0.6336,4092.5,4091.4,2.44415114]
[1760286712107,22.89848054,4092.5,4090.8,0.2227]
[1760286712278,0.6336,4092.2,4090.8,0.2227]
[1760286712470,2.03448805,4092.8,4090.9,0.473]
[1760286712777,2.03448805,4092.8,4092.3,0.1216]
[1760286712778,0.20344881,4092.7,4092.3,0.1216]
[1760286712984,0.6336,4092.6,4091.8,2.44385384]
[1760286713180,0.6336,4092.6,4092.1,0.1216]
[1760286713505,0.6336,4092.6,4090.3,1.92]
[1760286713506,0.6336,4091.9,4089.6,0.473]
[1760286713703,0.6336,4091.3,4089.6,0.473]
[1760286713996,0.6336,4091.1,4089.6,0.473]
[1760286714161,0.6336,4091.1,4089.7,2.44516712]
[1760286714359,0.6336,4091.1,4090.6,2.44461665]
[1760286714555,1.0723,4091.1,4090.4,2.4447439]
[1760286714756,1.0723,4091.1,4088.4,0.98]
[1760286714757,0.6336,4090.8,4088.4,0.98]
[1760286714964,0.6336,4090.3,4089.7,2.44511327]
[1760286715194,0.6336,4090.3,4089.8,2.44510478]
[1760286715486,20.34488054,4090.4,4089.9,2.4450181]
[1760286715707,20.34488054,4090.4,4089.8,2.44504998]
[1760286715999,20.34488054,4090.4,4089.3,0.473]
[1760286716290,20.34488054,4090.4,4090.0,2.44498758]
[1760286716489,20.34488054,4090.4,4089.8,2.44509754]
[1760286716490,17.36428655,4091.9,4090.1,0.6957]
[1760286716694,3.037,4092.1,4090.8,2.44450269]
[1760286717004,0.6336,4091.9,4090.4,2.44474867]
[1760286717207,0.6336,4091.9,4090.5,0.473]
[1760286717491,1.92,4092.4,4090.7,2.44456938]
[1760286717791,2.44414609,4091.5,4090.1,0.2227]
[1760286717971,3.07775358,4091.4,4090.3,2.44477452]
[1760286718292,0.6336,4091.2,4089.3,0.473]
[1760286718462,1.92,4091.1,4090.2,2.44485212]
[1760286718662,4.3643309,4091.1,4090.3,2.44480495]
[1760286718863,0.6336,4090.9,4090.1,2.44490732]
[1760286719089,0.6336,4090.9,4090.0,2.44498596]
[1760286719296,0.6336,4090.8,4090.4,2.44473843]
[1760286719458,0.6336,4090.8,4089.5,2.4452867]
[1760286719459,0.6336,4090.8,4090.0,0.473]
[1760286719663,0.6336,4091.6,4090.9,2.44444463]
[1760286719865,0.6336,4091.4,4090.1,0.2227]
[1760286720374,0.4387,4092.1,4090.1,0.2227]
[1760286720375,1.92,4092.3,4090.2,2.91786822]
[1760286720584,1.92,4092.3,4090.1,0.2227]
[1760286720585,17.36428655,4093.3,4090.4,1.92]
[1760286720800,2.77499622,4096.0,4090.5,0.473]
[1760286720801,17.36428655,4093.1,4090.5,0.473]
[1760286721105,2.44340548,4092.7,4090.5,2.393]
[1760286721315,1.73642865,4093.0,4090.3,0.31405682]
[1760286721316,1.73642865,4093.0,4090.6,0.473]
[1760286721461,2.44242029,4094.3,4090.6,0.473]
[1760286721661,2.44236029,4094.4,4092.4,2.4435068]
[1760286721906,1.92,4093.6,4092.2,0.473]
[1760286722065,2.3587,4094.2,4092.2,0.473]
[1760286722260,2.45996408,4094.3,4092.2,0.473]
[1760286722496,2.45996408,4094.3,4093.5,2.44284009]
[1760286722707,2.45996408,4094.3,4091.5,1.92]
[1760286722708,1.25060121,4094.5,4091.7,1.92]
[1760286722859,1.25060121,4094.5,4093.3,3.1e-07]
[1760286722860,3.1343808,4094.0,4093.3,3.1e-07]
[1760286723068,1.2716838,4093.5,4090.4,1.79010434]
[1760286723382,1.28224932,4091.8,4090.4,1.79010434]
[1760286723586,1.24182032,4091.6,4090.3,3.5e-07]
[1760286723762,1.24182032,4091.6,4091.5,0.1216]
[1760286723964,1.27251478,4091.2,4090.2,2.44486775]
[1760286724159,1.27251478,4091.2,4090.1,0.2227]
[1760286724395,1.24182032,4091.6,4090.2,2.44486822]
[1760286724584,1.27251478,4091.2,4090.1,0.2227]
[1760286724987,1.27251478,4091.2,4089.7,0.1885]
[1760286724988,1.280879,4091.0,4089.7,0.1885]
[1760286725189,0.6336,4091.3,4089.7,0.1885]
[1760286725389,1.21106136,4091.1,4089.7,0.1885]
[1760286725601,17.36428655,4090.4,4088.7,0.1885]
[1760286725904,0.6336,4090.8,4088.8,0.1885]
[1760286726146,0.6336,4090.8,4089.2,2.44544841]
[1760286726342,0.6336,4090.5,4088.9,0.27432554]
[1760286726503,0.6336,4090.5,4088.8,0.1885]
[1760286726701,0.6336,4090.8,4088.8,0.1885]
[1760286727052,0.6336,4090.0,4088.9,0.1885]
[1760286727205,0.6336,4090.0,4086.2,0.979]
[1760286727206,0.6336,4089.5,4087.1,2.44667321]
[1760286727539,0.6336,4088.8,4087.4,0.1885]
[1760286727741,0.6336,4088.8,4086.8,0.1885]
[1760286727899,2.5536,4088.2,4086.8,0.1885]
[1760286728095,0.6336,4088.2,4086.8,0.1885]
[1760286728299,1.92,4088.6,4086.8,0.1885]
[1760286728529,2.5536,4088.7,4086.8,0.1885]
[1760286728837,0.6336,4088.7,4086.8,0.1885]
[1760286729208,0.6336,4088.7,4087.7,2.44635044]
[1760286729409,0.6336,4088.7,4087.8,0.24463504]
[1760286729929,1.92,4088.8,4087.5,0.1885]
[1760286730107,0.6336,4089.4,4088.1,2.43644187]
[1760286730336,17.36428655,4090.3,4088.2,0.2631]
[1760286730509,17.36428655,4090.3,4088.3,0.1885]
[1760286730825,1.92,4088.8,4087.4,0.1885]
[1760286731006,0.6336,4088.7,4086.8,0.1885]
[1760286731539,2.5536,4088.3,4086.9,2.44684234]
[1760286731720,0.6336,4088.1,4086.8,0.1885]
[1760286731896,2.4460653,4088.2,4086.1,0.114]
[1760286731897,0.6336,4087.3,4086.1,0.114]
[1760286732412,0.6336,4088.1,4086.2,0.1885]
[1760286732617,2.44495677,4090.1,4083.8,2.44868386]
[1760286732618,2.44690222,4086.8,4085.4,0.114]
[1760286732915,0.6336,4086.4,4085.5,2.44768045]
[1760286733111,0.6336,4086.4,4085.4,0.114]
[1760286733112,0.6336,4086.4,4085.6,0.25616805]
[1760286733320,0.6336,4086.4,4085.4,0.3025]
[1760286733553,0.6336,4086.7,4085.4,0.3025]
[1760286733762,0.6336,4086.7,4085.5,2.44765692]
[1760286734055,0.6336,4086.7,4086.5,0.1216]
[1760286735655,2.44702197,4086.6,4086.5,0.1216]
[1760286735855,3.08074173,4086.4,4086.3,0.1216]
[1760286736056,0.6336,4086.1,4085.9,0.1216]
[1760286736377,1.0723,4086.3,4085.7,0.1216]
[1760286736554,0.6336,4086.3,4085.7,0.1216]
[1760286736861,0.6336,4086.1,4085.7,0.1216]
[1760286737383,0.6336,4086.7,4086.0,0.1216]
[1760286737763,0.6336,4086.1,4086.0,0.1216]
[1760286737928,2.5536,4086.1,4086.0,0.1216]
[1760286738356,2.5536,4086.6,4086.0,0.1216]
[1760286738560,0.6336,4086.6,4086.1,2.44726158]
[1760286738768,0.6336,4086.9,4085.8,2.44745004]
[1760286738929,0.6336,4086.9,4084.9,0.114]
[1760286738930,2.85326,4086.9,4084.9,0.114]
[1760286739143,0.6336,4086.2,4084.9,2.56203241]
[1760286739344,0.6336,4086.2,4083.6,1.92]
[1760286739345,2.5536,4086.1,4084.3,0.114]
[1760286739572,0.6336,4086.1,4085.2,2.44785443]
[1760286739736,3.08086551,4086.2,4085.1,2.44787535]
[1760286740067,0.6336,4086.0,4085.1,2.44787951]
[1760286740272,0.6336,4086.3,4085.8,2.44745009]
[1760286740484,0.443,4086.7,4085.7,2.44754548]
[1760286740485,0.6336,4086.6,4085.7,2.44754548]
[1760286740642,0.6336,4086.6,4085.7,2.4475276]
[1760286740836,0.6336,4086.8,4085.3,2.44780065]
[1760286741069,0.6336,4086.8,4086.1,2.44729567]
[1760286741275,0.6336,4086.8,4085.3,2.44778746]
[1760286741276,0.6336,4086.4,4085.3,2.44778746]
[1760286741581,0.6336,4086.4,4085.7,2.44755201]
[1760286741777,2.88990431,4086.8,4085.0,0.6094]
[1760286741778,5.00059252,4086.7,4085.0,0.6094]
[1760286741981,0.6336,4086.3,4085.4,2.44768203]
[1760286742284,2.44781681,4085.3,4085.0,0.6094]
[1760286742453,1.92,4085.1,4085.0,0.6094]
[1760286742786,1.0766,4085.1,4085.0,0.6094]
[1760286742945,5.44452049,4085.1,4085.0,0.6094]
[1760286743281,4.81092049,4085.1,4085.0,0.6094]
[1760286743481,4.81092049,4085.1,4083.4,3.42789907]
[1760286743482,0.6336,4084.9,4083.4,0.979]
[1760286743694,0.6336,4084.9,4083.4,1.34065583]
[1760286743858,0.6336,4084.9,4084.4,2.44832283]
[1760286744062,0.6336,4084.9,4083.4,1.34065583]
[1760286744250,0.6336,4084.7,4083.4,0.979]
[1760286744444,0.6336,4084.7,4082.8,0.1885]
[1760286744445,0.6336,4084.5,4083.1,2.44911954]
[1760286744655,0.6336,4084.5,4083.9,2.4485864]
[1760286744846,3.0818234,4084.6,4082.6,0.1885]
[1760286745082,2.5536,4084.1,4083.3,2.44894745]
[1760286745258,2.44809043,4084.9,4083.3,2.44894745]
[1760286745259,4.36798926,4085.0,4083.3,0.24509474]
[1760286745605,0.6336,4084.9,4082.5,0.002]
[1760286745749,1.24578912,4087.9,4082.5,0.002]
[1760286745750,0.2269,4086.4,4085.8,2.4474823]
[1760286746055,0.2269,4086.4,4083.5,1.92]
[1760286746056,0.443,4086.4,4084.9,0.114]
[1760286746256,0.443,4086.9,4085.7,2.4475103]
[1760286746456,1.92,4086.8,4085.7,2.4475103]
[1760286746668,2.68326456,4086.7,4085.9,2.44741585]
[1760286746850,2.44696456,4086.7,4085.9,2.44741585]
[1760286747050,0.443,4086.9,4084.9,0.114]
[1760286747286,2.4464031,4087.7,4084.9,0.114]
[1760286747287,2.44715485,4086.4,4084.9,0.114]
[1760286747470,0.6336,4086.3,4085.5,2.44762172]
[1760286747669,2.44685959,4086.9,4084.9,0.3025]
[1760286747871,0.221,4088.0,4086.1,2.44727782]
[1760286748073,0.6336,4086.7,4085.6,2.44760849]
[1760286748385,1.92,4086.8,4086.2,2.44723946]
[1760286748681,0.1216,4086.8,4086.1,0.1216]
[1760286748886,0.1216,4086.8,4085.0,2.44798041]
[1760286748887,0.1216,4087.1,4086.4,0.1216]
[1760286749085,2.0416,4087.1,4086.4,0.1216]
[1760286749270,0.6336,4087.0,4086.4,2.56873627]
[1760286749471,0.6336,4086.6,4086.4,2.56873627]
[1760286749858,0.6336,4086.6,4086.4,0.1216]
[1760286750060,1.83241369,4086.7,4085.4,0.1885]
[1760286750290,2.46601369,4086.7,4086.6,2.44702197]
[1760286750813,1.83241369,4086.7,4086.6,2.44702197]
[1760286751103,1.83241369,4086.7,4086.6,2.93643736]
[1760286751386,0.486593,4088.8,4086.7,4.89392418]
[1760286751556,0.608193,4088.8,4088.1,0.1216]
[1760286751748,2.88865693,4088.9,4088.3,2.44597094]
[1760286751749,0.443,4088.9,4088.3,2.44597094]
[1760286751966,0.443,4088.9,4088.4,0.1216]
[1760286752482,0.1216,4089.1,4088.4,2.56753545]
[1760286752787,0.30100796,4089.0,4088.4,0.1216]
[1760286753187,0.1216,4089.1,4088.4,0.1216]
[1760286753391,0.1216,4089.5,4088.8,0.1216]
[1760286753561,0.1216,4089.5,4089.1,2.44551841]
[1760286753883,0.1216,4089.5,4089.1,2.44551428]
[1760286754096,0.57020653,4090.6,4088.4,2.44594462]
[1760286754301,1.21756998,4090.9,4090.2,2.44485858]
[1760286754453,1.21756998,4090.9,4089.1,0.1885]
[1760286754909,1.21756998,4090.9,4090.7,2.44456938]
[1760286755189,0.443,4091.1,4090.4,2.44474803]
[1760286755399,0.443,4091.1,4090.3,2.44475262]
[1760286755692,0.001,4091.3,4090.5,2.44463322]
[1760286756002,0.6336,4090.6,4088.9,2.44564552]
[1760286756158,0.6336,4090.6,4090.1,2.44487192]
[1760286756486,0.6346,4091.3,4089.5,2.4452867]
[1760286756664,2.5536,4091.1,4089.2,0.1885]
[1760286756864,0.6336,4091.1,4090.2,2.44482003]
[1760286757065,0.001,4091.3,4089.2,0.1885]
[1760286757295,0.001,4091.3,4090.7,2.44456938]
[1760286758399,0.6336,4091.2,4090.6,2.44461974]
[1760286758560,0.6336,4091.2,4090.7,2.44456938]
[1760286758755,2.44432772,4091.2,4089.7,0.1885]
[1760286758979,2.5536,4091.1,4089.7,0.1885]
[1760286759167,2.5536,4091.1,4090.2,2.44486089]
[1760286759377,3.07794306,4091.1,4090.3,2.44480105]
[1760286759582,3.07794306,4091.1,4090.4,2.44471171]
[1760286759583,0.6336,4091.0,4090.4,2.44471171]
[1760286759759,0.6336,4091.0,4089.7,0.1885]
[1760286760166,0.6336,4091.2,4089.9,2.44504755]
[1760286760399,0.6336,4091.1,4090.4,2.44474033]
[1760286760586,2.5536,4091.1,4090.4,2.44474033]
[1760286760892,2.5536,4091.1,4090.5,2.44468842]
[1760286761093,0.001,4090.6,4090.5,2.44464329]
[1760286762162,0.001,4090.6,4088.6,2.44582497]
[1760286762389,0.001,4090.6,4088.4,2.44594462]
[1760286762390,0.001,4090.6,4088.7,0.68117696]
[1760286762703,1.92,4090.3,4089.0,0.1885]
[1760286762870,1.92,4090.3,4090.1,2.44487387]
[1760286763193,1.92,4090.3,4089.9,2.44504105]
[1760286763396,1.92,4090.3,4090.2,2.44486822]
[1760286764095,0.001,4090.6,4090.2,0.1216]
[1760286764399,0.001,4090.6,4089.5,0.1885]
[1760286764400,1.92,4090.2,4088.9,0.1885]
[1760286764696,1.92,4090.2,4090.1,2.44492799]
[1760286764896,2.22813357,4090.6,4090.1,0.1216]
[1760286765114,0.001,4090.6,4090.5,0.1216]
[1760286766310,0.001,4090.6,4090.5,2.56628891]
[1760286766774,0.001,4090.6,4090.5,2.75478891]
[1760286766973,0.001,4090.6,4090.5,2.56628891]
[1760286767672,0.001,4090.6,4090.5,2.75478891]
[1760286767877,0.001,4090.6,4090.5,3.27474822]
[1760286768774,1e-08,4091.1,4091.0,2.44439012]
[1760286769205,1e-08,4091.1,4091.0,2.63289012]
[1760286769595,1e-08,4091.1,4091.0,2.44439012]
[1760286769805,1e-08,4091.1,4090.6,2.44462914]
[1760286769806,1e-08,4091.1,4089.7,2.44515843]
[1760286769978,1e-08,4091.1,4091.0,2.44439012]
[1760286770174,1.92,4091.0,4087.8,2.4462525]
[1760286770388,2.5536,4090.4,4087.8,2.4462525]
[1760286770587,1.92,4090.4,4089.1,2.4455155]
[1760286770797,1.1078,4090.3,4088.8,2.44568962]
[1760286770979,0.6336,4090.3,4089.6,2.44517534]
[1760286771189,1e-08,4091.1,4091.0,2.44439012]
[1760286771493,1e-08,4091.1,4090.8,2.44448822]
[1760286771678,1e-08,4091.1,4090.9,2.44440227]
[1760286771879,1e-08,4091.1,4090.0,1.1675]
[1760286771880,1.92,4090.9,4090.4,2.4446993]
[1760286772090,0.6336,4090.8,4090.4,2.4446993]
[1760286772304,0.6336,4090.8,4090.3,2.44480459]
[1760286772512,4.14693357,4090.7,4090.0,3.42398033]
[1760286772812,2.5536,4090.3,4090.1,2.4449207]
[1760286773019,2.5536,4090.3,4088.8,0.1885]
[1760286773305,1.92,4090.7,4090.3,2.44480406]
[1760286773483,1.92,4090.7,4088.4,0.979]
[1760286773484,1.92,4090.7,4090.6,2.44462914]
[1760286773690,1e-08,4091.1,4091.0,2.44439012]
[1760286774913,1e-08,4091.1,4088.9,2.44564552]
[1760286775088,0.6336,4090.5,4089.0,0.24456455]
[1760286775303,0.6336,4090.5,4088.9,0.1885]
[1760286775304,0.6336,4090.5,4090.0,2.44494921]
[1760286775482,0.6336,4090.3,4090.0,0.3047]
[1760286775687,19.71573572,4090.2,4090.0,0.3047]
[1760286776043,1.92,4090.1,4090.0,2.74967038]
[1760286776308,1.92,4090.1,4090.0,0.3047]
[1760286776517,1.92,4090.1,4090.0,2.74968777]
[1760286776924,1.92,4090.6,4090.0,0.3047]
[1760286777085,0.192,4090.6,4090.0,0.3047]
[1760286777285,2.5536,4091.0,4090.0,0.3047]
[1760286777286,0.6336,4090.9,4090.4,2.44474209]
[1760286777482,1.92,4091.0,4090.0,2.74964462]
[1760286777483,2.5536,4090.4,4090.0,2.74964462]
[1760286777720,3.07852799,4090.1,4090.0,0.3047]
[1760286778018,4.99852799,4090.1,4090.0,0.3047]
[1760286778217,1.92,4090.1,4090.0,0.3047]
[1760286778407,21.63573572,4090.1,4090.0,0.3047]
[1760286778607,1.92,4090.1,4090.0,2.74968777]
[1760286778825,22.26933572,4090.1,4090.0,0.3047]
[1760286778995,24.50842929,4090.1,4090.0,0.3047]
[1760286779184,1.92,4090.1,4090.0,0.3047]
[1760286780014,3.0278,4090.1,4090.0,0.3047]
[1760286780620,5.47272799,4090.1,4090.0,0.3047]
[1760286780830,5.47272799,4090.1,4089.8,0.002]
[1760286780831,22.50839655,4089.9,4089.8,0.002]
[1760286781122,4.37996408,4089.9,4089.4,2.44533672]
[1760286781334,19.71573572,4090.3,4090.2,2.44486822]
[1760286781700,19.71573572,4090.3,4089.7,2.44512224]
[1760286781701,19.71573572,4091.0,4090.5,2.44465349]
[1760286781885,19.71573572,4091.0,4089.3,0.002]
[1760286782218,3.01399,4090.3,4089.3,0.002]
[1760286782384,2.5536,4090.3,4090.0,2.4449846]
[1760286782593,2.5536,4090.3,4089.3,2.44739604]
[1760286782594,0.4742,4090.2,4089.3,0.002]
[1760286782790,21.63573572,4089.4,4089.3,0.002]
[1760286783216,1.92,4089.4,4089.3,2.4474063]
[1760286783814,22.26933572,4090.0,4089.9,2.44504755]
[1760286784017,1.92,4090.0,4089.9,2.44504755]
[1760286784217,1e-08,4091.1,4090.8,2.44450963]
[1760286784422,1e-08,4091.1,4091.0,2.44439012]
[1760286786009,0.47420001,4091.1,4089.5,0.1885]
[1760286786244,0.47420001,4091.1,4090.0,0.1885]
[1760286786245,1e-08,4091.1,4090.0,0.1885]
[1760286786409,1e-08,4091.1,4091.0,2.44439012]
[1760286786841,1e-08,4091.1,4090.0,0.1885]
[1760286787046,1e-08,4091.1,4088.2,2.52066025]
[1760286787047,1e-08,4091.1,4089.1,2.44550685]
[1760286787224,1e-08,4091.1,4091.0,2.44439012]
[1760286787535,1e-08,4091.1,4089.5,2.4452867]
[1760286787834,1e-08,4091.1,4090.2,2.44484277]
[1760286787835,2.5536,4090.5,4090.2,2.44484277]
[1760286788128,2.5536,4090.5,4089.3,0.002]
[1760286788129,1e-08,4091.1,4089.8,0.1885]
[1760286788297,2.55360001,4091.1,4090.7,2.44454017]
[1760286788504,0.4742,4091.0,4089.3,0.002]
[1760286788744,0.4742,4091.0,4090.5,2.44464163]
[1760286788896,4.78063358,4091.1,4089.3,0.002]
[1760286788897,4.78063358,4091.1,4090.8,2.44447772]
[1760286789104,1e-08,4091.1,4091.0,2.44439012]
[1760286789296,1e-08,4091.1,4091.0,2.56599012]
[1760286790005,1e-08,4091.1,4091.0,2.44439012]
[1760286790432,0.6336,4091.0,4090.6,2.4446251]
[1760286790720,0.6336,4091.0,4088.3,2.44600436]
[1760286790721,0.6336,4090.5,4089.9,2.44500682]
[1760286790931,0.6336,4090.5,4088.9,0.1905]
[1760286790932,0.6336,4090.3,4088.9,0.002]
[1760286791254,19.71573572,4090.9,4089.0,0.1885]
[1760286791255,0.6336,4090.7,4089.0,0.1885]
[1760286791419,0.6336,4090.7,4089.4,2.4453465]
[1760286791623,19.71573572,4091.4,4089.4,2.4453465]
[1760286791624,0.6336,4091.2,4089.4,2.6338465]
[1760286791945,4.36522516,4091.3,4088.9,0.002]
[1760286791946,2.5536,4090.7,4088.9,0.002]
[1760286792115,2.5536,4090.5,4089.1,0.1885]
[1760286792302,2.5536,4090.5,4089.1,2.63401498]
[1760286792517,2.5536,4090.5,4090.4,2.44474867]
[1760286792915,2.5536,4090.5,4090.1,2.44492799]
[1760286793150,2.5536,4090.8,4089.5,2.4452867]
[1760286793654,0.6336,4090.8,4090.3,2.44480219]
[1760286793950,0.6336,4090.8,4089.1,2.63401277]
[1760286793951,1.92,4090.5,4089.5,2.4452867]
[1760286794250,0.6336,4090.6,4089.1,2.63398752]
[1760286794438,0.63360001,4091.1,4089.1,0.1885]
[1760286794749,0.63360001,4091.1,4088.9,0.002]
[1760286794750,1e-08,4091.1,4091.0,2.44439012]
[1760286795452,1e-08,4091.1,4090.2,2.44485775]
[1760286795621,1e-08,4091.1,4091.0,2.44439012]
[1760286796034,1e-08,4091.1,4090.7,2.44456804]
[1760286796231,0.6336,4090.9,4089.2,0.1885]